[Event "Live Chess"]
[Site "Chess.com"]
[Date "2024.06.01"]
[Round "-"]
[White "viktor_forever1994"]
[Black "Sokolik_UA"]
[Result "1-0"]
[WhiteElo "1391"]
[BlackElo "803"]
[TimeControl "300"]
[EndTime "11:18:11 PDT"]
[Termination "viktor_forever1994 won by checkmate"]

1. e4 {[%clk 0:04:58.2]} 1... e6 {[%clk 0:04:58.4]} 2. d4 {[%clk 0:04:56.9]}
2... d5 {[%clk 0:04:57.9]} 3. exd5 {[%clk 0:04:56.2]} 3... exd5 {[%clk
0:04:56.5]} 4. Nc3 {[%clk 0:04:55.8]} 4... Nf6 {[%clk 0:04:55.5]} 5. Bg5 {[%clk
0:04:54.2]} 5... Bb4 {[%clk 0:04:52.5]} 6. Qe2+ {[%clk 0:04:50.9]} 6... Be6
{[%clk 0:04:49.3]} 7. Nf3 {[%clk 0:04:37.7]} 7... Nbd7 {[%clk 0:04:46.5]} 8.
Bxf6 {[%clk 0:04:29.9]} 8... Qxf6 {[%clk 0:04:45.1]} 9. Ne5 {[%clk 0:04:18]}
9... O-O-O {[%clk 0:04:40.2]} 10. g3 {[%clk 0:03:50.7]} 10... Rhe8 {[%clk
0:04:39]} 11. Bg2 {[%clk 0:03:42.4]} 11... h5 {[%clk 0:04:34]} 12. O-O {[%clk
0:03:28.9]} 12... g5 {[%clk 0:04:29.5]} 13. Rfe1 {[%clk 0:03:14.8]} 13... h4
{[%clk 0:04:21.7]} 14. a3 {[%clk 0:02:39.7]} 14... hxg3 {[%clk 0:04:13.8]} 15.
fxg3 {[%clk 0:02:22.7]} 15... Bxc3 {[%clk 0:04:11.5]} 16. bxc3 {[%clk
0:02:21.1]} 16... Rh8 {[%clk 0:04:07.2]} 17. Rab1 {[%clk 0:02:10]} 17... Bh3
{[%clk 0:04:04.6]} 18. Bh1 {[%clk 0:02:07.3]} 18... Qf4 {[%clk 0:04:00.3]} 19.
gxf4 {[%clk 0:02:04]} 19... gxf4 {[%clk 0:03:57.6]} 20. Nxf7 {[%clk 0:01:39.2]}
20... Rhg8+ {[%clk 0:03:55.4]} 21. Kf2 {[%clk 0:01:33]} 21... Rde8 {[%clk
0:03:54.8]} 22. Qxe8+ {[%clk 0:01:29.8]} 22... Rxe8 {[%clk 0:03:51.4]} 23. Rxe8#
{[%clk 0:01:28.4]} 1-0

[Event "Live Chess"]
[Site "Chess.com"]
[Date "2024.06.01"]
[Round "-"]
[White "MagnersCarlsberg2870"]
[Black "chess5013"]
[Result "1-0"]
[WhiteElo "1875"]
[BlackElo "1249"]
[TimeControl "300"]
[EndTime "11:18:12 PDT"]
[Termination "MagnersCarlsberg2870 won by checkmate"]

1. d4 {[%clk 0:04:56.4]} 1... d5 {[%clk 0:04:56.1]} 2. e4 {[%clk 0:04:55.4]}
2... c6 {[%clk 0:04:47.9]} 3. exd5 {[%clk 0:04:53.3]} 3... cxd5 {[%clk
0:04:46.6]} 4. Nf3 {[%clk 0:04:51.8]} 4... Nf6 {[%clk 0:04:45.3]} 5. Bd3 {[%clk
0:04:48.6]} 5... Nc6 {[%clk 0:04:41.1]} 6. c3 {[%clk 0:04:47.3]} 6... e6 {[%clk
0:04:38]} 7. O-O {[%clk 0:04:46]} 7... Bd6 {[%clk 0:04:36.7]} 8. Re1 {[%clk
0:04:44.3]} 8... Bd7 {[%clk 0:04:35.7]} 9. Bc2 {[%clk 0:04:42.3]} 9... O-O
{[%clk 0:04:29.2]} 10. Ne5 {[%clk 0:04:41.2]} 10... Bxe5 {[%clk 0:04:00.2]} 11.
dxe5 {[%clk 0:04:39.4]} 11... Ne8 {[%clk 0:03:59.2]} 12. Qh5 {[%clk 0:04:37.8]}
12... g6 {[%clk 0:03:54.2]} 13. Qh6 {[%clk 0:04:33.3]} 13... Qc7 {[%clk
0:03:37.8]} 14. Bg5 {[%clk 0:04:31.5]} 14... Nxe5 {[%clk 0:03:31.9]} 15. Bf6
{[%clk 0:04:29.5]} 15... Nxf6 {[%clk 0:03:30.4]} 16. Nd2 {[%clk 0:04:16.7]}
16... Nc4 {[%clk 0:03:23.2]} 17. Nf3 {[%clk 0:04:11.2]} 17... Ne8 {[%clk
0:02:43]} 18. Ng5 {[%clk 0:04:09.4]} 18... Ng7 {[%clk 0:02:41.5]} 19. Qxh7#
{[%clk 0:04:07.8]} 1-0

[Event "Live Chess"]
[Site "Chess.com"]
[Date "2024.06.01"]
[Round "-"]
[White "dhairyapandyauk"]
[Black "NeilDruggan73"]
[Result "0-1"]
[WhiteElo "1717"]
[BlackElo "1720"]
[TimeControl "300"]
[EndTime "11:18:24 PDT"]
[Termination "NeilDruggan73 won by checkmate"]

1. e4 {[%clk 0:04:57.8]} 1... d6 {[%clk 0:04:58.1]} 2. d4 {[%clk 0:04:56.2]}
2... Nf6 {[%clk 0:04:56.8]} 3. Bd3 {[%clk 0:04:53.4]} 3... g6 {[%clk 0:04:55.7]}
4. f4 {[%clk 0:04:52.6]} 4... Bg7 {[%clk 0:04:54.1]} 5. Nf3 {[%clk 0:04:52.2]}
5... O-O {[%clk 0:04:52.5]} 6. c3 {[%clk 0:04:51.7]} 6... b6 {[%clk 0:04:49.4]}
7. O-O {[%clk 0:04:51.2]} 7... c5 {[%clk 0:04:48.3]} 8. Be3 {[%clk 0:04:41.9]}
8... Bb7 {[%clk 0:04:44.9]} 9. d5 {[%clk 0:04:37.3]} 9... a6 {[%clk 0:04:39.9]}
10. c4 {[%clk 0:04:33.8]} 10... Ng4 {[%clk 0:04:34.7]} 11. Bc1 {[%clk
0:04:31.7]} 11... e5 {[%clk 0:04:29.7]} 12. h3 {[%clk 0:04:25.1]} 12... Nh6
{[%clk 0:04:20.2]} 13. fxe5 {[%clk 0:04:23.8]} 13... f5 {[%clk 0:04:12]} 14.
Bxh6 {[%clk 0:04:14.6]} 14... Bxh6 {[%clk 0:04:10]} 15. exf5 {[%clk 0:04:13.7]}
15... gxf5 {[%clk 0:04:07.9]} 16. e6 {[%clk 0:04:12.3]} 16... Bg7 {[%clk
0:04:04.5]} 17. Nc3 {[%clk 0:04:10.5]} 17... Qf6 {[%clk 0:03:56.3]} 18. Qe1
{[%clk 0:04:04.7]} 18... a5 {[%clk 0:03:49.2]} 19. Qg3 {[%clk 0:04:01.6]} 19...
Na6 {[%clk 0:03:44.9]} 20. Qxd6 {[%clk 0:03:58.6]} 20... Nb4 {[%clk 0:03:40.1]}
21. Bb1 {[%clk 0:03:47.5]} 21... Ba6 {[%clk 0:03:38]} 22. a3 {[%clk 0:03:41]}
22... Bxc4 {[%clk 0:03:35.4]} 23. axb4 {[%clk 0:03:39.6]} 23... Bxf1 {[%clk
0:03:34]} 24. Kxf1 {[%clk 0:03:39.1]} 24... cxb4 {[%clk 0:03:31.5]} 25. Ne2
{[%clk 0:03:14.3]} 25... Qxb2 {[%clk 0:03:29.4]} 26. e7 {[%clk 0:03:09]} 26...
Qxa1 {[%clk 0:03:25]} 27. Qe6+ {[%clk 0:03:02.6]} 27... Kh8 {[%clk 0:03:20.2]}
28. exf8=Q+ {[%clk 0:02:58.2]} 28... Rxf8 {[%clk 0:03:18.5]} 29. Nd2 {[%clk
0:02:51.2]} 29... a4 {[%clk 0:03:14.8]} 30. d6 {[%clk 0:02:49.2]} 30... a3
{[%clk 0:03:12.1]} 31. d7 {[%clk 0:02:43.7]} 31... Qf6 {[%clk 0:03:01]} 32. Qb3
{[%clk 0:02:33.8]} 32... Qd6 {[%clk 0:02:56.5]} 33. Nc4 {[%clk 0:02:28]} 33...
Qc5 {[%clk 0:02:46.8]} 34. Qd3 {[%clk 0:02:20.8]} 34... Rd8 {[%clk 0:02:43.9]}
35. Ba2 {[%clk 0:02:12.3]} 35... Qe7 {[%clk 0:02:40.3]} 36. Qxf5 {[%clk
0:02:09.2]} 36... Rxd7 {[%clk 0:02:38.2]} 37. Nxb6 {[%clk 0:02:05.5]} 37... Rd1+
{[%clk 0:02:36.5]} 38. Kf2 {[%clk 0:02:03]} 38... Bd4+ {[%clk 0:02:27]} 39. Nxd4
{[%clk 0:01:53.4]} 39... Qe1+ {[%clk 0:02:26.5]} 40. Kf3 {[%clk 0:01:52.2]}
40... Qf1+ {[%clk 0:02:14.1]} 41. Kg3 {[%clk 0:01:43.6]} 41... Rd3+ {[%clk
0:02:12.3]} 42. Kh2 {[%clk 0:01:40.4]} 42... Qxf5 {[%clk 0:01:54.7]} 43. Nxf5
{[%clk 0:01:39.7]} 43... b3 {[%clk 0:01:52.9]} 44. Bb1 {[%clk 0:01:34.4]} 44...
Rd1 {[%clk 0:01:33.5]} 45. Be4 {[%clk 0:01:30.4]} 45... a2 {[%clk 0:01:28.9]}
46. Bd5 {[%clk 0:01:25.2]} 46... a1=Q {[%clk 0:01:24.5]} 47. Bxb3 {[%clk
0:01:24]} 47... Qe5+ {[%clk 0:01:22.5]} 48. Ng3 {[%clk 0:01:22.2]} 48... Rd3
{[%clk 0:01:20]} 49. Bd5 {[%clk 0:01:18.9]} 49... Qxg3+ {[%clk 0:01:18.1]} 50.
Kh1 {[%clk 0:01:17]} 50... Rd1# {[%clk 0:01:17.7]} 0-1

[Event "Live Chess"]
[Site "Chess.com"]
[Date "2024.06.01"]
[Round "-"]
[White "vincents82"]
[Black "WeakOldFinished"]
[Result "1/2-1/2"]
[WhiteElo "2109"]
[BlackElo "2052"]
[TimeControl "300"]
[EndTime "11:18:26 PDT"]
[Termination "Game drawn by agreement"]

1. e4 {[%clk 0:04:56.7]} 1... c5 {[%clk 0:04:53.8]} 2. Nf3 {[%clk 0:04:55.6]}
2... d6 {[%clk 0:04:52.4]} 3. d4 {[%clk 0:04:54.7]} 3... cxd4 {[%clk 0:04:51.7]}
4. Nxd4 {[%clk 0:04:54.2]} 4... Nf6 {[%clk 0:04:51.4]} 5. f3 {[%clk 0:04:53.9]}
5... e5 {[%clk 0:04:44]} 6. Nb3 {[%clk 0:04:52.3]} 6... Be6 {[%clk 0:04:39.4]}
7. c4 {[%clk 0:04:51.3]} 7... Nc6 {[%clk 0:04:36.7]} 8. Nc3 {[%clk 0:04:50.5]}
8... Be7 {[%clk 0:04:36]} 9. Be3 {[%clk 0:04:48.9]} 9... O-O {[%clk 0:04:34.5]}
10. Be2 {[%clk 0:04:48.3]} 10... Rc8 {[%clk 0:04:30.2]} 11. O-O {[%clk
0:04:46.7]} 11... Na5 {[%clk 0:04:28.6]} 12. Nxa5 {[%clk 0:04:44.3]} 12... Qxa5
{[%clk 0:04:26.4]} 13. Nd5 {[%clk 0:04:43.5]} 13... Bxd5 {[%clk 0:04:14.4]} 14.
cxd5 {[%clk 0:04:42.5]} 14... Bd8 {[%clk 0:04:13]} 15. Qd2 {[%clk 0:04:39.1]}
15... Qxd2 {[%clk 0:04:09]} 16. Bxd2 {[%clk 0:04:31.6]} 16... Bb6+ {[%clk
0:04:07.9]} 17. Kh1 {[%clk 0:04:30.3]} 17... Rc2 {[%clk 0:04:06.6]} 18. Rfd1
{[%clk 0:04:29.4]} 18... Rxb2 {[%clk 0:04:04.9]} 19. Bf1 {[%clk 0:04:20.1]}
19... Rc8 {[%clk 0:03:56.1]} 20. a4 {[%clk 0:04:13.2]} 20... Rcc2 {[%clk
0:03:35.3]} 21. Bg5 {[%clk 0:04:06]} 21... Nd7 {[%clk 0:03:33.6]} 22. a5 {[%clk
0:04:02.2]} 22... Bd4 {[%clk 0:03:22]} 23. Rac1 {[%clk 0:04:00.3]} 23... f6
{[%clk 0:03:19.1]} 24. Rxc2 {[%clk 0:03:54.9]} 24... Rxc2 {[%clk 0:03:17.6]} 25.
Rc1 {[%clk 0:03:54]} 25... Rxc1 {[%clk 0:03:14.7]} 26. Bxc1 {[%clk 0:03:52.9]}
26... a6 {[%clk 0:03:12.1]} 27. g3 {[%clk 0:03:46.5]} 27... Bc3 {[%clk
0:03:08.9]} 28. Bh3 {[%clk 0:03:45.5]} 28... Nc5 {[%clk 0:03:02.6]} 29. Be3
{[%clk 0:03:44.4]} 29... Bxa5 {[%clk 0:02:44.1]} 30. Bc8 {[%clk 0:03:39]} 30...
Bb6 {[%clk 0:02:29.3]} 31. Bxc5 {[%clk 0:03:33.3]} 31... Bxc5 {[%clk 0:02:27.7]}
32. Bxb7 {[%clk 0:03:32.6]} 32... a5 {[%clk 0:02:27.4]} 33. Bc6 {[%clk
0:03:31.9]} 33... Kf7 {[%clk 0:02:23.1]} 34. Kg2 {[%clk 0:03:31.4]} 34... Ke7
{[%clk 0:02:22.6]} 35. Kf1 {[%clk 0:03:30.9]} 35... Kd8 {[%clk 0:02:22.1]} 36.
Ke2 {[%clk 0:03:29.8]} 36... Kc7 {[%clk 0:02:21.5]} 37. Kd3 {[%clk 0:03:29.4]}
37... Kd8 {[%clk 0:02:15.1]} 38. Kc4 {[%clk 0:03:28.3]} 38... Ke7 {[%clk
0:02:08.1]} 39. Kd3 {[%clk 0:03:26.5]} 39... g6 {[%clk 0:02:05.2]} 40. g4 {[%clk
0:03:23.8]} 40... f5 {[%clk 0:01:46.1]} 41. exf5 {[%clk 0:03:19.1]} 41... gxf5
{[%clk 0:01:46]} 42. gxf5 {[%clk 0:03:18.5]} 42... Kf6 {[%clk 0:01:45.3]} 43.
Ke4 {[%clk 0:03:17.2]} 43... h5 {[%clk 0:01:37.4]} 44. h3 {[%clk 0:03:02.5]}
44... Kg5 {[%clk 0:01:31.8]} 45. Be8 {[%clk 0:02:58.5]} 45... Bb6 {[%clk
0:01:24.5]} 46. h4+ {[%clk 0:02:32.7]} 46... Kf6 {[%clk 0:01:18]} 47. Bxh5
{[%clk 0:02:26.8]} 47... Bf2 {[%clk 0:01:16.5]} 48. Be8 {[%clk 0:02:23.9]} 48...
Bxh4 {[%clk 0:01:14.9]} 49. Ba4 {[%clk 0:02:23.1]} 49... Be1 {[%clk 0:01:08.7]}
50. f4 {[%clk 0:02:21.8]} 50... exf4 {[%clk 0:01:04.7]} 51. Kxf4 {[%clk
0:02:20.9]} 51... Bc3 {[%clk 0:01:04]} 52. Ke4 {[%clk 0:02:19.9]} 52... Be5
{[%clk 0:01:01.9]} 53. Bb5 {[%clk 0:02:18.8]} 53... Bc3 {[%clk 0:01:00.3]}
1/2-1/2

[Event "Live Chess"]
[Site "Chess.com"]
[Date "2024.06.01"]
[Round "-"]
[White "GEMdzq"]
[Black "NottheBishopSacrifice"]
[Result "0-1"]
[WhiteElo "2301"]
[BlackElo "2256"]
[TimeControl "300"]
[EndTime "11:18:31 PDT"]
[Termination "NottheBishopSacrifice won by resignation"]

1. e4 {[%clk 0:04:58.1]} 1... c6 {[%clk 0:04:57.6]} 2. d4 {[%clk 0:04:57.3]}
2... d5 {[%clk 0:04:53.7]} 3. e5 {[%clk 0:04:56.8]} 3... c5 {[%clk 0:04:52.9]}
4. dxc5 {[%clk 0:04:54.8]} 4... e6 {[%clk 0:04:51.8]} 5. Be3 {[%clk 0:04:53.1]}
5... Nd7 {[%clk 0:04:49.9]} 6. Bb5 {[%clk 0:04:49.7]} 6... Ne7 {[%clk
0:04:49.5]} 7. Nf3 {[%clk 0:04:46.9]} 7... a6 {[%clk 0:04:47.2]} 8. Ba4 {[%clk
0:04:38.3]} 8... Nc6 {[%clk 0:04:43.3]} 9. O-O {[%clk 0:04:34.4]} 9... Nxc5
{[%clk 0:04:40.1]} 10. Bxc5 {[%clk 0:04:26.7]} 10... Bxc5 {[%clk 0:04:40]} 11.
c3 {[%clk 0:04:23.2]} 11... O-O {[%clk 0:04:36.3]} 12. Nbd2 {[%clk 0:04:21.3]}
12... b5 {[%clk 0:04:34.5]} 13. Bc2 {[%clk 0:04:20.3]} 13... Bb7 {[%clk
0:04:32.4]} 14. Qe2 {[%clk 0:04:16]} 14... Be7 {[%clk 0:04:26.7]} 15. Qd3 {[%clk
0:04:12.5]} 15... g6 {[%clk 0:04:25.4]} 16. Nb3 {[%clk 0:04:11.5]} 16... Qc7
{[%clk 0:04:23.4]} 17. Rfe1 {[%clk 0:04:09.8]} 17... Kg7 {[%clk 0:04:19.5]} 18.
h4 {[%clk 0:04:05.8]} 18... h5 {[%clk 0:04:17.8]} 19. Nbd4 {[%clk 0:04:00.4]}
19... Nxd4 {[%clk 0:04:16.1]} 20. cxd4 {[%clk 0:03:58]} 20... Rac8 {[%clk
0:04:13.3]} 21. Rac1 {[%clk 0:03:56.3]} 21... Qa5 {[%clk 0:04:11.7]} 22. Ng5
{[%clk 0:03:34.9]} 22... Bxg5 {[%clk 0:04:09.8]} 23. hxg5 {[%clk 0:03:33.5]}
23... Qxa2 {[%clk 0:03:52.8]} 24. Qf3 {[%clk 0:03:31.8]} 24... Qxb2 {[%clk
0:03:37.7]} 25. Qf6+ {[%clk 0:03:26.8]} 25... Kg8 {[%clk 0:03:37.3]} 26. Bxg6
{[%clk 0:03:22.3]} 26... Rxc1 {[%clk 0:03:34.1]} 27. Bh7+ {[%clk 0:03:09.3]}
27... Kxh7 {[%clk 0:03:29.3]} 28. Qh6+ {[%clk 0:03:07.6]} 28... Kg8 {[%clk
0:03:27.8]} 29. g6 {[%clk 0:03:04.6]} 29... Rxe1+ {[%clk 0:03:21.9]} 30. Kh2
{[%clk 0:03:03.7]} 30... Rh1+ {[%clk 0:03:15]} 31. Kxh1 {[%clk 0:03:02]} 31...
Qb1+ {[%clk 0:03:13.5]} 0-1

[Event "Live Chess"]
[Site "Chess.com"]
[Date "2024.06.01"]
[Round "-"]
[White "SirGerhard"]
[Black "Nazar-Makarchuk"]
[Result "1-0"]
[WhiteElo "2772"]
[BlackElo "1538"]
[TimeControl "300"]
[EndTime "11:18:37 PDT"]
[Termination "SirGerhard won - game abandoned"]

1. d4 {[%clk 0:04:59]} 1... d5 {[%clk 0:04:58.6]} 2. c4 {[%clk 0:04:58.2]} 2...
dxc4 {[%clk 0:04:56.9]} 3. Nf3 {[%clk 0:04:57.6]} 3... Nf6 {[%clk 0:04:56.3]} 4.
Nc3 {[%clk 0:04:57.1]} 4... e6 {[%clk 0:04:55.6]} 5. e4 {[%clk 0:04:56]} 5... c5
{[%clk 0:04:54.8]} 6. e5 {[%clk 0:04:54.3]} 6... Nd5 {[%clk 0:04:53.7]} 7. Bxc4
{[%clk 0:04:52.7]} 7... Nxc3 {[%clk 0:04:52.7]} 8. bxc3 {[%clk 0:04:51.9]} 8...
cxd4 {[%clk 0:04:52.1]} 9. cxd4 {[%clk 0:04:51]} 9... Nc6 {[%clk 0:04:51.6]} 10.
O-O {[%clk 0:04:50.1]} 10... Be7 {[%clk 0:04:50.6]} 11. Qd3 {[%clk 0:04:49.5]}
11... O-O {[%clk 0:04:48.6]} 12. Qe4 {[%clk 0:04:48.9]} 12... Bb4 {[%clk
0:04:35.6]} 13. Be3 {[%clk 0:04:44.2]} 13... Bc3 {[%clk 0:04:30.8]} 14. Rac1
{[%clk 0:04:41.8]} 14... Ba5 {[%clk 0:04:29.3]} 15. Ng5 {[%clk 0:04:40.4]} 15...
g6 {[%clk 0:04:05.7]} 16. Qh4 {[%clk 0:04:39.5]} 16... h5 {[%clk 0:03:49.7]} 17.
g4 {[%clk 0:04:38.8]} 17... Nxd4 {[%clk 0:03:39.8]} 18. Rfd1 {[%clk 0:04:31.3]}
18... Qxg5 {[%clk 0:03:35.2]} 19. Bxg5 {[%clk 0:04:20.6]} 19... Nf3+ {[%clk
0:03:34.1]} 20. Kg2 {[%clk 0:04:20.2]} 20... Nxh4+ {[%clk 0:03:33]} 21. Bxh4
{[%clk 0:04:20.1]} 21... b6 {[%clk 0:03:29.6]} 22. gxh5 {[%clk 0:04:14.6]} 22...
gxh5 {[%clk 0:03:25.3]} 23. Bf6 {[%clk 0:04:13.2]} 23... Bb7+ {[%clk 0:03:23.7]}
24. Kh3 {[%clk 0:04:09.9]} 24... Rfc8 {[%clk 0:03:09.7]} 25. Rg1+ {[%clk
0:04:05]} 25... Kf8 {[%clk 0:03:06.5]} 26. Rg7 {[%clk 0:03:51]} 26... Bd5 {[%clk
0:02:57.9]} 27. Rh7 {[%clk 0:03:47]} 27... Ke8 {[%clk 0:02:54.2]} 28. Bb5+
{[%clk 0:03:46.4]} 1-0

[Event "Live Chess"]
[Site "Chess.com"]
[Date "2024.06.01"]
[Round "-"]
[White "elephantgerrald"]
[Black "Bob2pen"]
[Result "0-1"]
[WhiteElo "756"]
[BlackElo "1860"]
[TimeControl "300"]
[EndTime "11:18:53 PDT"]
[Termination "Bob2pen won by checkmate"]

1. e4 {[%clk 0:04:57.5]} 1... e5 {[%clk 0:04:58.3]} 2. Nf3 {[%clk 0:04:56]} 2...
Nc6 {[%clk 0:04:57.5]} 3. Bb5 {[%clk 0:04:54.6]} 3... a6 {[%clk 0:04:55.9]} 4.
Bxc6 {[%clk 0:04:53.6]} 4... dxc6 {[%clk 0:04:55]} 5. O-O {[%clk 0:04:53.5]}
5... Bd6 {[%clk 0:04:52.5]} 6. Nc3 {[%clk 0:04:53.4]} 6... Bg4 {[%clk
0:04:50.7]} 7. h3 {[%clk 0:04:51.1]} 7... h5 {[%clk 0:04:47.9]} 8. hxg4 {[%clk
0:04:48.6]} 8... hxg4 {[%clk 0:04:46.8]} 9. Nh2 {[%clk 0:04:47]} 9... Qh4 {[%clk
0:04:43.7]} 10. Re1 {[%clk 0:04:34.5]} 10... Qxh2+ {[%clk 0:04:38.2]} 11. Kf1
{[%clk 0:04:33.4]} 11... Nf6 {[%clk 0:04:28.4]} 12. d3 {[%clk 0:04:28.1]} 12...
Qh1+ {[%clk 0:04:23]} 13. Ke2 {[%clk 0:04:26.1]} 13... Qxg2 {[%clk 0:04:21.9]}
14. Be3 {[%clk 0:04:23.2]} 14... O-O-O {[%clk 0:04:19.7]} 15. Qd2 {[%clk
0:04:17.2]} 15... Qf3+ {[%clk 0:04:15.7]} 16. Kf1 {[%clk 0:04:11.9]} 16... Rh1#
{[%clk 0:04:14.1]} 0-1

[Event "Live Chess"]
[Site "Chess.com"]
[Date "2024.06.01"]
[Round "-"]
[White "KwikPhoenix"]
[Black "McFim"]
[Result "1-0"]
[WhiteElo "2439"]
[BlackElo "1580"]
[TimeControl "300"]
[EndTime "11:19:08 PDT"]
[Termination "KwikPhoenix won by resignation"]

1. b3 {[%clk 0:04:58.9]} 1... d5 {[%clk 0:04:54.6]} 2. Bb2 {[%clk 0:04:58.8]}
2... c5 {[%clk 0:04:51.9]} 3. e3 {[%clk 0:04:57.6]} 3... Nc6 {[%clk 0:04:50.2]}
4. Bb5 {[%clk 0:04:57.1]} 4... Bf5 {[%clk 0:04:42.4]} 5. Nf3 {[%clk 0:04:56.5]}
5... a6 {[%clk 0:04:39.7]} 6. Bxc6+ {[%clk 0:04:55.6]} 6... bxc6 {[%clk
0:04:38.3]} 7. O-O {[%clk 0:04:55.2]} 7... e6 {[%clk 0:04:36.9]} 8. d3 {[%clk
0:04:54]} 8... Nf6 {[%clk 0:04:34.9]} 9. h3 {[%clk 0:04:52.9]} 9... Bg6 {[%clk
0:04:33.2]} 10. Ne5 {[%clk 0:04:52]} 10... Qc7 {[%clk 0:04:31.1]} 11. Nd2 {[%clk
0:04:51.2]} 11... Bd6 {[%clk 0:04:28.5]} 12. f4 {[%clk 0:04:50.6]} 12... O-O
{[%clk 0:04:24.3]} 13. Ndf3 {[%clk 0:04:50]} 13... Nd7 {[%clk 0:04:12.9]} 14.
Nxd7 {[%clk 0:04:46.7]} 14... Qxd7 {[%clk 0:04:10.3]} 15. Qe2 {[%clk 0:04:43.2]}
15... f6 {[%clk 0:04:07.7]} 16. Nh4 {[%clk 0:04:36.4]} 16... Bf7 {[%clk
0:04:05.9]} 17. e4 {[%clk 0:04:35.2]} 17... e5 {[%clk 0:03:55.7]} 18. f5 {[%clk
0:04:30.1]} 18... d4 {[%clk 0:03:52.5]} 19. a4 {[%clk 0:04:25]} 19... Rfb8
{[%clk 0:03:34.4]} 20. Ba3 {[%clk 0:04:24.3]} 20... Kf8 {[%clk 0:03:31]} 21. Rf3
{[%clk 0:04:21.8]} 21... Rb7 {[%clk 0:03:24.6]} 22. Rg3 {[%clk 0:04:20.7]} 22...
Bg8 {[%clk 0:03:22.4]} 23. Qg4 {[%clk 0:04:06.4]} 23... Qe7 {[%clk 0:03:13]} 24.
Nf3 {[%clk 0:03:57.6]} 24... Ke8 {[%clk 0:02:58.3]} 25. h4 {[%clk 0:03:56.1]}
25... Kd7 {[%clk 0:02:54.2]} 26. Qxg7 {[%clk 0:03:54.6]} 26... Qxg7 {[%clk
0:02:47.4]} 27. Rxg7+ {[%clk 0:03:54]} 27... Be7 {[%clk 0:02:46.7]} 28. Bxc5
{[%clk 0:03:52.3]} 1-0

[Event "Live Chess"]
[Site "Chess.com"]
[Date "2024.06.01"]
[Round "-"]
[White "DoctorMantisTobogganMD"]
[Black "Zhevzh1k7"]
[Result "1-0"]
[WhiteElo "2195"]
[BlackElo "1086"]
[TimeControl "300"]
[EndTime "11:19:09 PDT"]
[Termination "DoctorMantisTobogganMD won by checkmate"]

1. e4 {[%clk 0:04:58.7]} 1... c6 {[%clk 0:04:58]} 2. d4 {[%clk 0:04:57.2]} 2...
d5 {[%clk 0:04:56.4]} 3. exd5 {[%clk 0:04:57.1]} 3... cxd5 {[%clk 0:04:55.2]} 4.
Bd3 {[%clk 0:04:56.7]} 4... Nc6 {[%clk 0:04:53.7]} 5. c3 {[%clk 0:04:55.9]} 5...
Nf6 {[%clk 0:04:49.3]} 6. Ne2 {[%clk 0:04:54.7]} 6... Qb6 {[%clk 0:04:47.9]} 7.
O-O {[%clk 0:04:53.3]} 7... Bg4 {[%clk 0:04:46.6]} 8. f3 {[%clk 0:04:52.1]} 8...
Bh5 {[%clk 0:04:43.9]} 9. Qe1 {[%clk 0:04:51.3]} 9... e6 {[%clk 0:04:41.2]} 10.
b4 {[%clk 0:04:41.6]} 10... a6 {[%clk 0:04:38.9]} 11. Qh4 {[%clk 0:04:36]} 11...
Be7 {[%clk 0:04:33.1]} 12. Bg5 {[%clk 0:04:31.9]} 12... Bg6 {[%clk 0:04:30.3]}
13. Bxg6 {[%clk 0:04:28.1]} 13... fxg6 {[%clk 0:04:29.5]} 14. Nd2 {[%clk
0:04:23.8]} 14... O-O {[%clk 0:04:25.1]} 15. Nb3 {[%clk 0:04:19.9]} 15... Qb5
{[%clk 0:04:23.3]} 16. Qe1 {[%clk 0:04:11.1]} 16... Nd7 {[%clk 0:04:16.2]} 17.
Bxe7 {[%clk 0:04:07.9]} 17... Nxe7 {[%clk 0:04:15.4]} 18. a4 {[%clk 0:04:07.4]}
18... Qb6 {[%clk 0:04:11.9]} 19. Nc5 {[%clk 0:03:57.5]} 19... Nxc5 {[%clk
0:04:10.2]} 20. bxc5 {[%clk 0:03:57.4]} 20... Qc6 {[%clk 0:04:07]} 21. a5 {[%clk
0:03:52.3]} 21... Nf5 {[%clk 0:03:55.5]} 22. Nc1 {[%clk 0:03:50.2]} 22... Rfe8
{[%clk 0:03:52.3]} 23. Nd3 {[%clk 0:03:48]} 23... Nh6 {[%clk 0:03:48.5]} 24. Ne5
{[%clk 0:03:45.2]} 24... Qc7 {[%clk 0:03:42.1]} 25. Qb1 {[%clk 0:03:37.6]} 25...
Nf5 {[%clk 0:03:38]} 26. Re1 {[%clk 0:03:36.4]} 26... Rac8 {[%clk 0:03:25.1]}
27. Qb4 {[%clk 0:02:59.4]} 27... Ne7 {[%clk 0:02:59.8]} 28. Rab1 {[%clk
0:02:54]} 28... Rb8 {[%clk 0:02:51.6]} 29. Qb6 {[%clk 0:02:50.4]} 29... Qxb6
{[%clk 0:02:48.3]} 30. Rxb6 {[%clk 0:02:50.3]} 30... Nc6 {[%clk 0:02:45.9]} 31.
Nxc6 {[%clk 0:02:40.9]} 31... bxc6 {[%clk 0:02:44.4]} 32. Reb1 {[%clk
0:02:34.8]} 32... Rxb6 {[%clk 0:02:40.2]} 33. Rxb6 {[%clk 0:02:34.7]} 33... e5
{[%clk 0:02:36.8]} 34. Kf2 {[%clk 0:02:31.8]} 34... exd4 {[%clk 0:02:34.3]} 35.
cxd4 {[%clk 0:02:31.7]} 35... Rc8 {[%clk 0:02:29]} 36. Rxa6 {[%clk 0:02:29.9]}
36... Kf7 {[%clk 0:02:28]} 37. Ra7+ {[%clk 0:02:27.8]} 37... Ke6 {[%clk
0:02:26.7]} 38. Rxg7 {[%clk 0:02:26.6]} 38... Ra8 {[%clk 0:02:24.6]} 39. Rxh7
{[%clk 0:02:22.9]} 39... Rxa5 {[%clk 0:02:22.5]} 40. Rc7 {[%clk 0:02:22.2]}
40... Ra6 {[%clk 0:02:18.5]} 41. g4 {[%clk 0:02:20.7]} 41... Kf6 {[%clk
0:02:16.9]} 42. Kg3 {[%clk 0:02:19.1]} 42... g5 {[%clk 0:02:09.7]} 43. h4 {[%clk
0:02:16.8]} 43... gxh4+ {[%clk 0:02:08.2]} 44. Kxh4 {[%clk 0:02:16.7]} 44... Kg6
{[%clk 0:02:07.5]} 45. f4 {[%clk 0:02:15.1]} 45... Kf6 {[%clk 0:02:03.4]} 46.
Rd7 {[%clk 0:02:11.7]} 46... Kg6 {[%clk 0:02:00.9]} 47. Rd6+ {[%clk 0:02:10.5]}
47... Kf7 {[%clk 0:01:58.9]} 48. Kg5 {[%clk 0:02:10.4]} 48... Kg7 {[%clk
0:01:57.8]} 49. f5 {[%clk 0:02:09.4]} 49... Ra8 {[%clk 0:01:52.3]} 50. Rxc6
{[%clk 0:02:07.5]} 50... Rg8 {[%clk 0:01:51.5]} 51. Rc7+ {[%clk 0:02:05.9]}
51... Kf8+ {[%clk 0:01:48.9]} 52. Kf4 {[%clk 0:02:05.4]} 52... Rg7 {[%clk
0:01:46.1]} 53. Rxg7 {[%clk 0:02:03.4]} 53... Kxg7 {[%clk 0:01:46]} 54. g5
{[%clk 0:02:03.3]} 54... Kf7 {[%clk 0:01:45]} 55. Ke5 {[%clk 0:02:03.2]} 55...
Ke7 {[%clk 0:01:44]} 56. Kxd5 {[%clk 0:02:02.8]} 56... Kf7 {[%clk 0:01:43.9]}
57. Ke5 {[%clk 0:02:02.7]} 57... Kg7 {[%clk 0:01:43.8]} 58. d5 {[%clk
0:02:02.5]} 58... Kf7 {[%clk 0:01:43.7]} 59. c6 {[%clk 0:02:02.4]} 59... Kg7
{[%clk 0:01:43.6]} 60. c7 {[%clk 0:02:02.1]} 60... Kf7 {[%clk 0:01:43.5]} 61.
c8=Q {[%clk 0:02:00.8]} 61... Ke7 {[%clk 0:01:42.1]} 62. Qb7+ {[%clk 0:01:59.8]}
62... Kd8 {[%clk 0:01:40.6]} 63. Ke6 {[%clk 0:01:57.8]} 63... Ke8 {[%clk
0:01:39.5]} 64. Qb8# {[%clk 0:01:57.5]} 1-0